bitfinex-derivatives/quotes_BTCF0:USTF0_20250402
["timestamp","ask_amount","ask_price","bid_price","bid_amount"]
[1743621241738,0.00017367,86338.0,86337.0,0.23595168]
[1743621242234,0.11599517,86338.0,86337.0,0.23595168]
[1743621243227,0.11599517,86338.0,86337.0,0.44354206]
[1743621244441,0.00017367,86338.0,86337.0,0.44354206]
[1743621245434,0.00017367,86338.0,86337.0,0.44365165]
[1743621246243,0.00017367,86338.0,86337.0,0.23606127]
[1743621246841,0.00017367,86338.0,86337.0,0.28316127]
[1743621249042,0.10337026,86348.0,86347.0,0.1158094]
[1743621249245,0.10409026,86348.0,86347.0,0.50286281]
[1743621249635,0.10409026,86348.0,86347.0,0.59906281]
[1743621249835,0.10409026,86348.0,86347.0,0.23826281]
[1743621250047,0.1165281,86348.0,86347.0,0.22826281]
[1743621250251,0.74765433,86348.0,86347.0,0.22826281]
[1743621250438,0.74765433,86348.0,86347.0,0.18026281]
[1743621250634,0.74765433,86348.0,86347.0,0.13206281]
[1743621251548,0.74765433,86348.0,86347.0,0.18026281]
[1743621252148,1.01765433,86348.0,86347.0,0.01625341]
[1743621252338,0.1158201,86340.0,86339.0,0.05791]
[1743621252540,0.1168201,86340.0,86339.0,0.05851]
[1743621252741,0.70215423,86340.0,86339.0,0.05851]
[1743621254852,0.1158255,86335.0,86334.0,0.20790933]
[1743621255041,0.11690551,86335.0,86334.0,0.32433623]
[1743621255249,0.24096349,86335.0,86334.0,0.32433623]
[1743621255651,0.33916349,86335.0,86334.0,0.32433623]
[1743621256846,0.33916349,86335.0,86334.0,0.20850933]
[1743621257253,0.33916349,86335.0,86334.0,0.0006]
[1743621257455,0.1158295,86332.0,86331.0,0.1158309]
[1743621257660,0.1158322,86330.0,86329.0,0.1069165]
[1743621257958,0.11695221,86330.0,86329.0,0.1075565]
[1743621258157,0.2429438,86330.0,86329.0,0.1075565]
[1743621258359,0.3392438,86330.0,86329.0,0.1075565]
[1743621258660,0.3392438,86330.0,86329.0,0.1568565]
[1743621259165,0.3392438,86330.0,86329.0,0.00064]
[1743621259660,0.3392438,86330.0,86329.0,0.04994]
[1743621261362,0.3392438,86330.0,86329.0,0.1657736]
[1743621261848,0.3392438,86330.0,86329.0,0.2113736]
[1743621263865,0.2899438,86330.0,86329.0,0.2113736]
[1743621264257,0.2899438,86330.0,86329.0,0.2267864]
[1743621264458,0.11695221,86330.0,86329.0,0.2745864]
[1743621264663,0.11695221,86330.0,86329.0,0.6353864]
[1743621264968,0.00112001,86330.0,86329.0,0.6353864]
[1743621265461,0.00112001,86330.0,86329.0,0.6453864]
[1743621265863,0.10399731,86332.0,86331.0,0.1158309]
[1743621266062,0.10507732,86332.0,86331.0,0.1318437]
[1743621266267,0.10507732,86332.0,86331.0,0.2463437]
[1743621267466,0.13789871,86336.0,86335.0,0.1158255]
[1743621267767,0.13865871,86336.0,86335.0,0.1418383]
[1743621267956,0.13865871,86336.0,86335.0,0.2320383]
[1743621269368,0.13789871,86351.0,86344.0,0.0579067]
[1743621269570,0.13789871,86351.0,86332.0,0.3608]
[1743621269571,0.25438421,86351.0,86350.0,0.1158054]
[1743621269760,0.25438421,86351.0,86350.0,0.13167745]
[1743621270071,0.13857871,86351.0,86350.0,0.49247745]
[1743621270670,0.13857871,86351.0,86350.0,0.58507745]
[1743621270870,0.25438281,86351.0,86350.0,0.58507745]
[1743621271767,0.13857871,86351.0,86350.0,0.58507745]
[1743621272157,0.13857871,86351.0,86350.0,0.59507745]
[1743621272961,0.13857871,86351.0,86350.0,0.5798054]
[1743621273163,0.00068,86351.0,86350.0,0.5798054]
[1743621273367,0.1158029,86352.0,86351.0,0.1158041]
[1743621273565,0.1164429,86352.0,86351.0,0.1264441]
[1743621273766,0.1164429,86352.0,86351.0,0.2071441]
[1743621273962,0.3764429,86352.0,86351.0,0.00064]
[1743621274267,0.1737175,86347.0,86346.0,0.1158103]
[1743621274466,0.17431751,86347.0,86346.0,0.1164103]
[1743621274664,0.29659988,86347.0,86346.0,0.1164103]
[1743621275177,0.29659988,86347.0,86346.0,0.1605103]
[1743621276267,0.34079988,86347.0,86346.0,0.0006]
[1743621276570,0.1158121,86345.0,86344.0,0.1158126]
[1743621276769,0.1164921,86345.0,86344.0,0.1164126]
[1743621276969,0.33449455,86345.0,86344.0,0.1164126]
[1743621277662,0.33449455,86345.0,86344.0,0.1637126]
[1743621278668,0.33449455,86345.0,86344.0,0.2123126]
[1743621279476,0.33449455,86345.0,86344.0,0.22768751]
[1743621279869,0.33449455,86345.0,86344.0,0.22778587]
[1743621285557,0.33449455,86345.0,86344.0,0.22780333]
[1743621286971,0.33449455,86345.0,86344.0,0.11199073]
[1743621287166,0.33449455,86345.0,86344.0,0.06339073]
[1743621287367,0.33449455,86345.0,86344.0,0.01609073]
[1743621287564,0.1158242,86336.0,86335.0,0.1619242]
[1743621287765,0.11642421,86336.0,86335.0,0.17800481]
[1743621288073,0.25432421,86336.0,86335.0,0.17800481]
[1743621288269,0.25432421,86336.0,86330.0,0.20790933]
[1743621288270,0.1158309,86331.0,86330.0,0.20790933]
[1743621288475,0.49870536,86331.0,86330.0,0.2238305]
[1743621288775,0.70644919,86331.0,86330.0,0.20790933]
[1743621288966,0.70644919,86331.0,86330.0,0.20850933]
[1743621292471,0.70644919,86331.0,86330.0,0.0006]
[1743621292672,0.1158336,86329.0,86328.0,0.00017367]
[1743621292963,0.1165536,86329.0,86328.0,0.00089367]
[1743621293168,0.34407696,86329.0,86328.0,0.00089367]
[1743621293373,0.34407696,86329.0,86328.0,0.00017367]
[1743621293671,0.34407696,86329.0,86328.0,0.00081367]
[1743621294379,0.34407696,86329.0,86328.0,0.00017367]
[1743621295178,0.1158537,86314.0,86307.0,0.05966918]
[1743621295374,0.1165737,86314.0,86313.0,0.20858933]
[1743621295573,0.38194941,86314.0,86313.0,0.20858933]
[1743621296274,0.38194941,86314.0,86313.0,0.00068]
[1743621297487,0.39057262,86314.0,86313.0,0.00068]
[1743621298189,0.39057262,86314.0,86313.0,0.116535]
[1743621299091,0.39057262,86314.0,86313.0,0.161935]
[1743621300584,0.39057262,86314.0,86313.0,0.04608]
[1743621300787,0.39057262,86314.0,86313.0,0.0454]
[1743621301480,0.39057262,86314.0,86313.0,0.161895]
[1743621301680,0.39057262,86314.0,86313.0,0.04604]
[1743621301881,0.39057262,86314.0,86313.0,0.09014]
[1743621302283,0.39057262,86314.0,86313.0,0.205995]
[1743621303191,0.18021892,86314.0,86313.0,0.205995]
[1743621303388,0.00934321,86314.0,86313.0,0.615095]
[1743621303583,0.13789871,86328.0,86327.0,0.1158362]
[1743621303891,0.13861871,86328.0,86327.0,0.1164362]
[1743621304078,0.13861871,86328.0,86327.0,0.2579362]
[1743621304588,0.25445361,86328.0,86327.0,0.0938]
[1743621304791,0.40457055,86328.0,86327.0,0.0938]
[1743621304982,0.1737799,86316.0,86315.0,0.1158511]
[1743621305287,0.1744999,86316.0,86315.0,0.1164511]
[1743621305478,0.30027953,86316.0,86315.0,0.1164511]
[1743621305981,0.30027953,86316.0,86315.0,0.1615511]
[1743621306388,0.30027953,86316.0,86315.0,0.2098511]
[1743621307189,0.12649963,86316.0,86315.0,0.2098511]
[1743621307391,0.00072,86316.0,86315.0,0.2098511]
[1743621307587,0.1737683,86321.0,86319.0,0.0579234]
[1743621307789,0.00072,86321.0,86320.0,0.5707456]
[1743621307991,0.1165643,86321.0,86320.0,0.5714256]
[1743621308193,0.1165643,86321.0,86320.0,0.2106256]
[1743621308681,0.1641643,86321.0,86320.0,0.2106256]
[1743621309291,0.2848743,86321.0,86320.0,0.2106256]
[1743621309883,0.1165643,86321.0,86320.0,0.2106256]
[1743621310493,0.1165643,86321.0,86320.0,0.5714256]
[1743621310888,0.1158443,86321.0,86320.0,0.5714256]
[1743621311690,0.00853992,86328.0,86327.0,0.1158362]
[1743621311992,0.1165549,86328.0,86327.0,0.1164349]
[1743621312390,0.1165549,86328.0,86327.0,0.5731349]
[1743621314496,0.12513712,86328.0,86327.0,0.5731349]
[1743621314699,0.00072,86328.0,86327.0,0.5731349]
[1743621314895,0.0579114,86337.0,86336.0,0.1158242]
[1743621315094,0.0586314,86337.0,86336.0,0.1164242]
[1743621315295,0.0586314,86337.0,86336.0,0.2109242]
[1743621315495,0.11319787,86337.0,86336.0,0.2109242]
[1743621316301,0.06739787,86337.0,86336.0,0.2109242]
[1743621317003,0.11369787,86337.0,86336.0,0.2109242]
[1743621319200,0.11369787,86337.0,86336.0,0.0006]
[1743621319405,0.1158322,86330.0,86329.0,0.0477]
[1743621319601,0.1165522,86330.0,86329.0,0.04834]
[1743621319797,0.2107522,86330.0,86329.0,0.04834]
[1743621321002,0.2107522,86330.0,86329.0,0.00064]
[1743621321003,0.34482779,86330.0,86329.0,0.00064]
[1743621321311,0.1158336,86329.0,86328.0,0.00017379]
[1743621321598,0.1165536,86329.0,86328.0,0.00017379]
[1743621321806,0.29320034,86329.0,86328.0,0.00077379]
[1743621323207,0.29320034,86329.0,86328.0,0.04767379]
[1743621323409,0.29320034,86329.0,86328.0,0.04707379]
[1743621323602,0.00072,86329.0,86328.0,0.52370869]
[1743621323805,0.1158318,86331.0,86330.0,0.1158322]
[1743621324001,0.1165518,86331.0,86330.0,0.2103522]
[1743621326698,0.1158023,86353.0,86335.0,0.0579123]
[1743621326903,0.32288382,86346.0,86345.0,0.1158121]
[1743621327204,0.32288382,86346.0,86345.0,0.00064]
[1743621327507,0.41928382,86346.0,86345.0,0.00064]
[1743621327707,0.41928382,86346.0,86337.0,0.4766228]
[1743621327708,0.1158215,86338.0,86337.0,0.4766228]
[1743621328008,0.1165415,86338.0,86337.0,0.5266628]
[1743621328208,0.1626415,86338.0,86337.0,0.5266628]
[1743621330002,0.1626415,86338.0,86337.0,0.36144]
[1743621330208,0.5234415,86338.0,86337.0,0.00064]
[1743621330405,0.64976603,86338.0,86337.0,0.00064]
[1743621330712,0.1158309,86331.0,86330.0,0.1737413]
[1743621331007,0.1158309,86331.0,86330.0,0.2214813]
[1743621331406,0.1165109,86331.0,86330.0,0.2214813]
[1743621332112,0.1165109,86331.0,86330.0,0.1743813]
[1743621332811,0.1629109,86331.0,86330.0,0.2214813]
[1743621333513,0.1629109,86331.0,86330.0,0.00064]
[1743621333814,0.1629109,86331.0,86330.0,0.1164722]
[1743621334308,0.5237109,86331.0,86330.0,0.00064]
[1743621334501,0.1158336,86329.0,86328.0,0.00017379]
[1743621334804,0.11643361,86329.0,86328.0,0.00017379]
[1743621335000,0.29593147,86329.0,86328.0,0.00081379]
[1743621336698,0.29593147,86329.0,86328.0,0.00017379]
[1743621336902,0.34493147,86329.0,86328.0,0.00017379]
[1743621337298,0.35650368,86329.0,86328.0,0.00017379]
[1743621337503,0.18009787,86329.0,86328.0,0.11600869]
[1743621337806,0.11643361,86329.0,86328.0,0.11664869]
[1743621338006,0.11643361,86329.0,86328.0,0.47744869]
[1743621338311,0.11643361,86329.0,86328.0,0.57164869]
[1743621338713,0.00060001,86329.0,86328.0,0.57164869]
[1743621338912,0.4766228,86338.0,86337.0,0.1158228]
[1743621339110,0.4772628,86338.0,86337.0,0.1164628]
[1743621339316,0.5228628,86338.0,86337.0,0.2095628]
[1743621340218,0.5807735,86338.0,86337.0,0.2095628]
[1743621342523,0.00064,86338.0,86337.0,0.2095628]
[1743621342719,0.1737271,86344.0,86343.0,0.1737188]
[1743621342909,0.1744471,86344.0,86343.0,0.1743988]
[1743621343614,0.232354,86344.0,86343.0,0.0585867]
[1743621343830,0.24084291,86344.0,86343.0,0.00068]
[1743621344017,0.1158215,86338.0,86337.0,0.2089228]
[1743621344320,0.1165015,86338.0,86337.0,0.2095628]
[1743621344825,0.1631015,86338.0,86337.0,0.2095628]
[1743621345020,0.2110015,86338.0,86337.0,0.2095628]
[1743621347123,0.00068,86338.0,86337.0,0.2095628]
[1743621347311,0.00068,86338.0,86337.0,0.2545628]
[1743621347516,0.1165015,86338.0,86337.0,0.09374]
[1743621347910,0.1654015,86338.0,86337.0,0.09374]
[1743621348620,0.1654015,86338.0,86337.0,0.2095628]
[1743621349419,0.29603207,86338.0,86337.0,0.00064]
[1743621349628,0.1158282,86333.0,86332.0,0.1614295]
[1743621349827,0.1164682,86333.0,86332.0,0.1620695]
[1743621350126,0.1645682,86333.0,86332.0,0.1620695]
[1743621350337,0.2091682,86333.0,86332.0,0.1620695]
[1743621351630,0.2091682,86333.0,86332.0,0.2100695]
[1743621356826,0.36097379,86354.0,86351.0,0.1158041]
[1743621357026,0.36097379,86354.0,86351.0,0.1166841]
[1743621357027,0.32351573,86352.0,86351.0,0.1166841]
[1743621357220,0.32351573,86352.0,86351.0,0.00088]
[1743621357421,0.1158041,86351.0,86350.0,0.045]
[1743621357621,0.1164441,86351.0,86350.0,0.1616454]
[1743621357824,0.1164441,86351.0,86350.0,0.04584]
[1743621358430,0.2090441,86351.0,86350.0,0.04584]
[1743621361117,0.33195988,86351.0,86350.0,0.00084]
[1743621361325,0.44195988,86351.0,86350.0,0.00084]
[1743621361620,0.44195988,86351.0,86350.0,1e-07]
[1743621361827,0.44195988,86351.0,86340.0,0.20790933]
[1743621361828,0.1158175,86341.0,86340.0,0.20790933]
[1743621362029,0.49721751,86341.0,86340.0,0.20850933]
[1743621362224,0.71621612,86341.0,86340.0,0.20850933]
[1743621362933,0.1158242,86336.0,86329.0,0.34676989]
[1743621363123,0.1158322,86330.0,86329.0,0.34676989]
[1743621363436,0.3565922,86330.0,86329.0,0.34736989]
[1743621363735,0.48578696,86330.0,86329.0,0.34736989]
[1743621363931,0.48578696,86330.0,86329.0,0.0006]
[1743621364126,0.1158336,86329.0,86328.0,0.00017379]
[1743621364325,0.4773936,86329.0,86328.0,0.00081379]
[1743621364526,0.69921954,86329.0,86328.0,0.00017379]
[1743621365027,0.74721954,86329.0,86328.0,0.00017379]
[1743621367535,0.38641954,86329.0,86328.0,0.00017379]
[1743621367837,0.29141954,86329.0,86328.0,0.11664869]
[1743621368041,0.29141954,86329.0,86328.0,0.11676869]
[1743621368337,0.1663936,86329.0,86328.0,0.11676869]
[1743621368733,0.1663936,86329.0,86328.0,0.16636869]
[1743621368927,0.00076,86329.0,86328.0,0.21316869]
[1743621369135,0.1165936,86329.0,86328.0,0.21316869]
[1743621370437,0.24046205,86329.0,86328.0,0.09733379]
[1743621370626,0.24046205,86329.0,86328.0,0.09657379]
[1743621370826,0.29086205,86329.0,86328.0,0.09721379]
[1743621371229,0.29086205,86329.0,86328.0,0.05041379]
[1743621371428,0.33966205,86329.0,86328.0,0.00017379]
[1743621371830,0.81046205,86329.0,86328.0,0.00017379]
[1743621372034,0.1158483,86318.0,86310.0,0.3608]
[1743621372233,0.1158564,86312.0,86311.0,0.16440114]
[1743621372441,0.1166164,86312.0,86311.0,0.21370114]
[1743621373135,0.1670164,86312.0,86311.0,0.21370114]
[1743621373538,0.00076,86312.0,86311.0,0.21370114]
[1743621373749,0.0579217,86322.0,86319.0,0.115847]
[1743621373930,0.0579176,86328.0,86319.0,0.617967]
[1743621374127,0.0579157,86331.0,86319.0,0.617967]
[1743621374128,0.1158434,86322.0,86319.0,0.617967]
[1743621374338,0.0579184,86327.0,86319.0,0.617967]
[1743621374540,0.11601939,86320.0,86319.0,0.617967]
[1743621374841,0.17340906,86333.0,86332.0,0.1158295]
[1743621375043,0.29007726,86333.0,86332.0,0.4766295]
[1743621375246,0.29007726,86333.0,86332.0,0.5711695]
[1743621375444,0.34007726,86333.0,86332.0,0.5711695]
[1743621376538,0.29007726,86333.0,86332.0,0.5711695]
[1743621376742,0.29007726,86333.0,86332.0,0.45534]
[1743621376929,0.33587726,86333.0,86332.0,0.45534]
[1743621377334,0.1624682,86333.0,86332.0,0.45534]
[1743621378040,0.1624682,86333.0,86332.0,0.09454]
[1743621378246,0.67599116,86333.0,86332.0,0.00084]
[1743621378544,0.1158389,86325.0,86324.0,0.00017379]
[1743621378745,0.1166789,86325.0,86324.0,0.00101379]
[1743621378943,0.28484805,86325.0,86324.0,0.00101379]
[1743621379636,0.33054805,86325.0,86324.0,0.00101379]
[1743621383051,0.28484805,86325.0,86324.0,0.00101379]
[1743621383546,0.12320915,86325.0,86324.0,0.11685409]
[1743621383849,0.1158282,86333.0,86332.0,0.173741]
[1743621384048,0.1166682,86333.0,86332.0,0.0587541]
[1743621384551,0.1650682,86333.0,86332.0,0.0587541]
[1743621385448,0.1650682,86333.0,86332.0,0.1560541]
[1743621386743,0.04924,86333.0,86332.0,0.1560541]
[1743621387052,0.00084,86333.0,86332.0,0.1560541]
[1743621387548,0.08258584,86348.0,86332.0,0.85894]
[1743621387750,0.24098121,86369.0,86367.0,0.1157826]
[1743621388055,0.11726131,86368.0,86367.0,0.36188]
[1743621388557,0.16706131,86368.0,86367.0,0.4776626]
[1743621388751,0.21286131,86368.0,86367.0,0.4776626]
[1743621389047,0.21286131,86368.0,86367.0,0.5760626]
[1743621389841,0.16706131,86368.0,86367.0,0.5760626]
[1743621390846,0.34532296,86368.0,86367.0,0.41138]
[1743621391248,0.34532296,86368.0,86367.0,0.5271626]
[1743621391643,0.29952296,86368.0,86367.0,0.5271626]
[1743621391848,0.11726131,86368.0,86367.0,0.5271626]
[1743621393950,0.11726131,86368.0,86367.0,0.1663626]
[1743621394261,0.00148001,86368.0,86367.0,0.1663626]
[1743621394453,0.0004,86368.0,86367.0,0.1663626]
[1743621399557,0.1161813,86368.0,86367.0,0.1663626]
[1743621399957,0.11730131,86368.0,86367.0,0.1663626]
[1743621400462,0.11726131,86368.0,86367.0,0.1663626]
[1743621402457,0.00148001,86368.0,86367.0,0.2121626]
[1743621402656,0.1157634,86382.0,86375.0,0.1157719]
[1743621402962,0.00125369,86376.0,86375.0,0.2086519]
[1743621403152,0.00017368,86376.0,86375.0,0.2086519]
[1743621403352,0.00133368,86376.0,86375.0,0.2086519]
[1743621404463,0.00017368,86376.0,86375.0,0.2086519]
[1743621404960,0.00125369,86376.0,86375.0,0.2086519]
[1743621405358,0.00017368,86376.0,86375.0,0.2086519]
[1743621405560,0.00125369,86376.0,86375.0,0.2086519]
[1743621405868,0.00017368,86376.0,86375.0,0.2086519]
[1743621409956,0.0469,86381.0,86380.0,0.1157652]
[1743621410158,0.04806,86381.0,86380.0,0.1169252]
[1743621410357,0.04922,86381.0,86380.0,0.2120252]
[1743621410558,0.04806,86381.0,86380.0,0.2120252]
[1743621410966,0.29107288,86381.0,86380.0,0.1631252]
[1743621411165,0.29215289,86381.0,86380.0,0.1631252]
[1743621411462,0.33825289,86381.0,86380.0,0.1631252]
[1743621411764,0.33825289,86381.0,86380.0,0.00116]
[1743621413060,0.1157813,86368.0,86367.0,0.1157816]
[1743621413263,0.1165013,86368.0,86367.0,0.1165016]
[1743621413466,0.2574013,86368.0,86367.0,0.1165016]
[1743621414368,0.2574013,86368.0,86367.0,0.2147016]
[1743621417969,0.38903008,86368.0,86367.0,0.00072]
[1743621418171,0.115792,86360.0,86354.0,0.3608]
[1743621418372,0.115792,86360.0,86359.0,0.11656698]
[1743621418373,0.116472,86360.0,86359.0,0.11656698]
[1743621418567,0.33083132,86360.0,86359.0,0.11656698]
[1743621418765,0.16893932,86360.0,86359.0,0.11656698]
[1743621419068,0.163572,86360.0,86359.0,0.20936698]
[1743621419274,0.163612,86360.0,86359.0,0.20936698]
[1743621420570,0.00072,86360.0,86359.0,0.20936698]
[1743621420766,0.04597368,86368.0,86359.0,0.20936698]
[1743621420767,0.0478,86364.0,86363.0,0.115788]
[1743621420965,0.04844,86364.0,86363.0,0.210188]
[1743621421274,0.21958711,86367.0,86366.0,0.1736745]
[1743621421467,0.15224411,86367.0,86366.0,0.5350745]
[1743621422878,0.26802671,86367.0,86366.0,0.5350745]
[1743621424272,0.15224411,86367.0,86366.0,0.5350745]
[1743621424670,0.15224411,86367.0,86366.0,0.55037387]
[1743621424871,0.00064,86367.0,86366.0,0.55037387]
[1743621425075,0.00017368,86368.0,86367.0,0.1157826]
[1743621425374,0.00081368,86368.0,86367.0,0.13168197]
[1743621426080,0.00081368,86368.0,86367.0,0.13168295]
[1743621426477,0.00017368,86368.0,86367.0,0.13168295]
[1743621426673,0.10380411,86375.0,86374.0,0.1157732]
[1743621426874,0.10452411,86375.0,86374.0,0.49247355]
[1743621427771,0.10452411,86375.0,86374.0,0.53787355]
[1743621427971,0.00072,86375.0,86374.0,0.53787355]
[1743621428181,0.0457,86379.0,86378.0,0.1157679]
[1743621428382,0.04634,86379.0,86378.0,0.13166825]
[1743621431681,0.1621065,86379.0,86378.0,0.13185542]
[1743621431878,0.2074065,86379.0,86378.0,0.13185542]
[1743621432277,0.33983527,86379.0,86378.0,0.13185542]
[1743621433485,0.33983527,86379.0,86378.0,0.1163679]
[1743621433677,0.33983527,86379.0,86378.0,0.13181336]
[1743621433879,0.33983527,86379.0,86378.0,0.01604546]
[1743621434380,0.33983527,86379.0,86378.0,0.1163679]
[1743621434578,0.33983527,86379.0,86378.0,0.13182112]
[1743621435182,0.1621065,86379.0,86378.0,0.13182112]
[1743621435383,0.1621065,86379.0,86378.0,0.1163679]
[1743621435580,0.1621065,86379.0,86378.0,0.13184155]
[1743621435985,0.2113065,86379.0,86378.0,0.13184155]
[1743621436687,0.04634,86379.0,86378.0,0.13184155]
[1743621436877,0.1621065,86379.0,86378.0,0.13184155]
[1743621437077,0.2091065,86379.0,86378.0,0.13184155]
[1743621437882,0.2091065,86379.0,86378.0,0.01607365]
[1743621437883,0.33398788,86379.0,86378.0,0.01607365]
[1743621439284,0.33398788,86379.0,86378.0,0.13184155]
[1743621439879,0.33398788,86379.0,86378.0,0.17894155]
[1743621440386,0.33398788,86379.0,86378.0,0.22474155]
[1743621440989,0.33398788,86379.0,86378.0,0.17764155]
[1743621441194,0.33398788,86379.0,86378.0,0.17753526]
[1743621444491,0.33398788,86379.0,86378.0,0.22583526]
[1743621445090,0.33398788,86379.0,86378.0,0.22578211]
[1743621445988,0.33398788,86379.0,86378.0,0.17748211]
[1743621446388,0.69478788,86379.0,86378.0,0.01591421]
[1743621446578,0.1157759,86372.0,86371.0,0.2771674]
[1743621446779,0.5544559,86372.0,86371.0,0.2777674]
[1743621446985,0.68518195,86372.0,86371.0,0.2777674]
[1743621447185,0.83048195,86372.0,86371.0,0.2777674]
[1743621448097,0.75340195,86372.0,86371.0,0.2777674]
[1743621448687,0.75340195,86372.0,86371.0,0.0006]
[1743621448995,0.75340195,86372.0,86371.0,0.01587989]
[1743621449881,0.75340195,86372.0,86371.0,0.0006]
[1743621450286,0.1642759,86372.0,86371.0,0.1163772]
[1743621450582,0.0008,86372.0,86371.0,0.1163772]
[1743621450787,0.1157686,86378.0,86377.0,0.0578845]
[1743621450985,0.1165686,86378.0,86377.0,0.07385545]
[1743621452288,0.1661686,86378.0,86377.0,0.07385545]
[1743621452788,0.1661686,86378.0,86377.0,0.0584845]
[1743621453796,0.28924428,86378.0,86377.0,0.13163654]
[1743621453998,0.33654428,86378.0,86377.0,0.13163654]
[1743621454183,0.33654428,86378.0,86377.0,0.01586734]
[1743621455192,0.33654428,86378.0,86377.0,0.0006]
[1743621455695,0.57654428,86378.0,86377.0,0.0006]
[1743621455900,0.1157786,86370.0,86369.0,0.3929465]
[1743621456193,0.1157786,86370.0,86369.0,0.40894736]
[1743621456405,0.33679993,86370.0,86369.0,0.40894736]
[1743621456594,0.33763993,86370.0,86369.0,0.40894736]
[1743621456795,0.33763993,86370.0,86369.0,0.29316826]
[1743621457302,0.33763993,86370.0,86369.0,0.40894816]
[1743621457696,0.33763993,86370.0,86369.0,0.29316826]
[1743621459790,0.33763993,86370.0,86369.0,0.01600086]
[1743621459994,0.115792,86360.0,86359.0,0.00017368]
[1743621460190,0.356632,86360.0,86359.0,0.01644166]
[1743621460404,0.62085105,86360.0,86359.0,0.01644166]
[1743621460605,0.38085105,86360.0,86359.0,0.01644166]
[1743621460806,0.38085105,86360.0,86359.0,0.13223496]
[1743621462408,0.38085105,86360.0,86359.0,0.00105368]
[1743621462796,0.38085105,86360.0,86359.0,0.13239079]
[1743621462992,0.38085105,86360.0,86359.0,0.1323908]
[1743621463505,0.38085105,86360.0,86359.0,0.11684698]
[1743621464302,0.39215692,86360.0,86359.0,0.00105368]
[1743621464501,0.48215692,86360.0,86359.0,0.00017368]
[1743621465100,0.1158054,86350.0,86349.0,0.2771674]
[1743621465297,0.7574454,86350.0,86349.0,0.2777674]
[1743621465497,0.1158121,86345.0,86344.0,0.34676989]
[1743621465702,0.46393211,86345.0,86344.0,0.34736989]
[1743621466002,0.1158188,86340.0,86329.0,0.48337994]
[1743621466202,0.7665975,86340.0,86339.0,0.41537073]
[1743621466505,0.1158322,86330.0,86329.0,0.41578094]
[1743621466705,0.8052322,86330.0,86329.0,0.41578094]
[1743621467007,0.93459342,86330.0,86329.0,0.28189136]
[1743621467201,1.12679342,86330.0,86329.0,6e-08]
[1743621467511,1.22219342,86330.0,86329.0,6e-08]
[1743621468303,0.3080349,86328.0,86327.0,1e-08]
[1743621468508,0.9003549,86328.0,86327.0,1e-08]
[1743621468710,1.02294469,86328.0,86327.0,1e-08]
[1743621470112,0.83074469,86328.0,86327.0,1e-08]
[1743621470308,0.98074469,86328.0,86327.0,1e-08]
[1743621471417,1.03708807,86328.0,86327.0,1e-08]
[1743621471912,1.13558807,86328.0,86327.0,1e-08]
[1743621472114,0.98558807,86328.0,86327.0,1e-08]
[1743621475202,0.92924469,86328.0,86327.0,1e-08]
[1743621475404,1.00636469,86328.0,86327.0,1e-08]
[1743621477811,0.0579244,86318.0,86311.0,0.00042353]
[1743621478018,0.4766564,86312.0,86311.0,0.00028984]
[1743621478308,0.7972564,86312.0,86311.0,0.00028984]
[1743621478513,0.92024945,86312.0,86311.0,0.00028984]
[1743621478919,0.96924945,86312.0,86311.0,0.00028984]
[1743621480411,0.96924945,86312.0,86311.0,4e-08]
[1743621481615,0.1158671,86304.0,86303.0,0.00017378]
[1743621481816,0.7481871,86304.0,86303.0,0.00017378]
[1743621482010,0.89290693,86304.0,86303.0,0.00017378]
[1743621482409,0.99030693,86304.0,86303.0,0.00017378]
[1743621483020,0.99030693,86304.0,86279.0,0.00046361]
[1743621483021,0.1158779,86296.0,86279.0,0.00046361]
[1743621483316,0.8089179,86296.0,86295.0,2e-08]
[1743621483519,0.93675898,86296.0,86295.0,2e-08]
[1743621485324,0.94544639,86296.0,86295.0,2e-08]
[1743621486020,0.86472639,86296.0,86295.0,2e-08]
[1743621486616,0.95672639,86296.0,86295.0,2e-08]
[1743621487129,0.1158859,86290.0,86289.0,0.0976]
[1743621487420,0.3774059,86290.0,86289.0,0.0976]
[1743621487628,0.51142223,86290.0,86289.0,0.0976]
[1743621488026,0.55742223,86290.0,86289.0,0.0976]
[1743621490629,0.1158886,86288.0,86287.0,8e-08]
[1743621490832,0.38744861,86288.0,86287.0,8e-08]
[1743621491035,0.51340328,86288.0,86287.0,8e-08]
[1743621492333,0.24340328,86288.0,86287.0,8e-08]
[1743621495020,0.38093696,86288.0,86287.0,8e-08]
[1743621495623,0.74173696,86288.0,86287.0,8e-08]
[1743621498533,0.1158967,86282.0,86281.0,0.0998]
[1743621498838,0.1174967,86282.0,86281.0,0.0998]
[1743621499139,0.24750264,86282.0,86281.0,0.0998]
[1743621499526,0.13160594,86282.0,86281.0,0.0998]
[1743621499731,0.1174967,86282.0,86281.0,0.0998]
[1743621500833,0.24145981,86282.0,86281.0,0.0998]
[1743621509241,0.29781973,86282.0,86281.0,0.0998]
[1743621512537,0.35131973,86282.0,86281.0,0.0998]
[1743621513934,0.1159061,86275.0,86274.0,0.0498]
[1743621514138,0.11746611,86275.0,86274.0,0.0498]
[1743621514338,0.17006611,86275.0,86274.0,0.0498]
[1743621514853,0.11746611,86275.0,86274.0,0.1657074]
[1743621515144,0.00156001,86275.0,86274.0,0.1657074]
[1743621517249,0.00156001,86275.0,86274.0,0.2669074]
[1743621521441,0.11746611,86275.0,86274.0,0.2669074]
[1743621521840,0.16596611,86275.0,86274.0,0.2669074]
[1743621523153,0.21676611,86275.0,86274.0,0.2669074]
[1743621523551,0.05006001,86275.0,86274.0,0.2669074]
[1743621524857,0.00156001,86275.0,86274.0,0.2669074]
[1743621526155,0.05146001,86275.0,86274.0,0.2669074]
[1743621528446,0.13644131,86276.0,86275.0,0.1159061]
[1743621528749,0.10491136,86276.0,86275.0,0.2194061]
[1743621530357,0.10491136,86276.0,86275.0,0.2200061]
[1743621530661,0.10491136,86276.0,86275.0,0.5808061]
[1743621531062,0.05392251,86283.0,86282.0,0.1158967]
[1743621531250,0.05392251,86283.0,86282.0,0.4773367]
[1743621531251,0.05472251,86283.0,86282.0,0.4773367]
[1743621531445,0.05392251,86283.0,86282.0,0.5816367]
[1743621532751,0.0518,86289.0,86288.0,0.1158886]
[1743621532958,0.05256,86289.0,86288.0,0.1164886]
[1743621533160,0.05256,86289.0,86288.0,0.2682886]
[1743621535958,0.00076,86289.0,86288.0,0.2682886]
[1743621536163,0.20809129,86293.0,86292.0,0.1158832]
[1743621536357,0.20889129,86293.0,86292.0,0.4773232]
[1743621536559,0.20889129,86293.0,86292.0,0.5811232]
[1743621537063,0.42547319,86293.0,86292.0,0.5811232]
[1743621538159,0.42547319,86293.0,86292.0,0.4773232]
[1743621538451,0.2173819,86293.0,86292.0,0.4773232]
[1743621538656,0.34845607,86293.0,86292.0,0.1165232]
[1743621540261,0.70925607,86293.0,86292.0,0.00064]
[1743621540453,0.1158926,86285.0,86284.0,0.2082097]
[1743621540659,0.4774526,86285.0,86284.0,0.2088497]